bitfinex/quotes_ETHUSD_20251111
["timestamp","ask_amount","ask_price","bid_price","bid_amount"]
[1762875653901,0.012,3489.9,3489.7,2.86556724]
[1762875654298,0.012,3489.9,3489.3,0.5]
[1762875654499,0.012,3489.9,3489.8,2.86549372]
[1762875654926,0.012,3489.9,3489.0,2.86610549]
[1762875654927,0.6611,3489.9,3489.5,3.61573216]
[1762875655234,0.9703,3489.9,3489.7,2.86552068]
[1762875655535,0.6611,3489.9,3489.8,2.86549372]
[1762875655709,0.6611,3489.9,3489.5,0.75]
[1762875655901,0.3092,3489.8,3489.5,0.75]
[1762875656434,0.4571,3489.6,3489.5,0.75]
[1762875656634,0.4571,3489.6,3489.5,3.61574007]
[1762875656808,0.1947,3489.9,3489.5,0.75]
[1762875657013,0.012,3489.9,3489.7,2.86552804]
[1762875657212,0.012,3489.9,3489.8,2.86549372]
[1762875658024,0.012,3489.9,3489.8,4.0636016]
[1762875659705,0.012,3489.9,3489.8,5.3981056]
[1762875660539,0.012,3489.9,3489.8,5.42676053]
[1762875660751,1e-08,3490.3,3490.2,3.87836932]
[1762875660935,1e-08,3490.3,3490.2,6.25903242]
[1762875662138,1e-08,3490.3,3490.2,5.75903242]
[1762875662316,1e-08,3490.3,3490.2,6.59475941]
[1762875662514,1e-08,3490.3,3490.2,6.25903242]
[1762875663211,1e-08,3490.9,3490.8,4.24187685]
[1762875663412,1e-08,3490.9,3490.8,5.70154133]
[1762875663641,1e-08,3490.9,3490.8,5.40984133]
[1762875663913,1e-08,3490.9,3490.8,6.15884133]
[1762875664566,1e-08,3490.9,3490.8,4.99087685]
[1762875664863,0.27880001,3490.9,3490.8,1.249]
[1762875665153,1e-08,3490.9,3490.8,3.61367285]
[1762875665358,0.93890001,3490.9,3489.4,0.4573]
[1762875665568,0.0046,3490.8,3490.2,0.5]
[1762875665808,0.19720001,3490.9,3490.7,2.86471443]
[1762875666113,1.8773408,3490.8,3490.1,0.748]
[1762875666270,0.0028,3490.7,3490.1,0.748]
[1762875666478,0.276,3490.2,3489.7,0.5]
[1762875666773,0.276,3490.2,3489.6,0.711]
[1762875666996,1.5985408,3490.1,3489.1,0.5]
[1762875667171,0.1972,3489.2,3488.9,0.001]
[1762875667377,1.1337408,3489.1,3488.9,0.001]
[1762875667568,1.5985408,3489.1,3488.9,0.001]
[1762875667768,0.1972,3489.5,3489.3,2.86584424]
[1762875668104,0.1972,3490.0,3489.7,0.5]
[1762875668304,0.4648,3489.9,3489.3,0.748]
[1762875669072,0.4648,3489.9,3489.3,3.6138998]
[1762875669417,0.4648,3489.9,3489.3,0.748]
[1762875670186,0.4648,3489.9,3489.5,2.86567862]
[1762875670783,0.4648,3489.9,3489.3,0.748]
[1762875671104,0.4648,3489.9,3489.4,2.86576613]
[1762875671400,0.4648,3489.9,3489.3,0.748]
[1762875671775,0.1972,3490.0,3489.8,2.86541165]
[1762875671978,0.4648,3490.4,3489.8,2.86541201]
[1762875672176,0.476,3489.9,3489.3,0.748]
[1762875672403,0.0028,3489.8,3489.3,1.248]
[1762875672576,0.464,3490.4,3489.4,0.14343]
[1762875672774,0.464,3490.4,3489.7,0.5]
[1762875672967,0.464,3490.4,3489.8,0.748]
[1762875673192,0.61022359,3490.6,3489.8,0.748]
[1762875673391,0.19720001,3490.9,3490.2,2.86508564]
[1762875673709,0.19720001,3490.9,3490.8,2.86467285]
[1762875673710,1e-08,3490.9,3490.8,2.86467285]
[1762875673896,1e-08,3490.9,3490.3,0.748]
[1762875674097,0.2879,3490.4,3490.0,0.5]
[1762875674347,0.0045,3490.3,3490.1,0.748]
[1762875674495,0.0045,3490.3,3489.9,0.748]
[1762875674698,0.4548,3490.0,3489.4,0.02865822]
[1762875674924,0.1948,3489.5,3488.9,0.001]
[1762875675108,7.60207945,3489.0,3488.9,0.001]
[1762875675407,8.95987679,3489.0,3488.9,0.001]
[1762875675618,8.67667679,3489.0,3488.9,0.001]
[1762875675822,1.1337408,3488.9,3488.1,0.01]
[1762875676025,0.1972,3488.6,3488.1,0.01]
[1762875676445,7.60207945,3488.3,3488.1,0.01]
[1762875676621,8.35007945,3488.3,3488.1,0.01]
[1762875676827,8.81487945,3488.3,3488.1,0.01]
[1762875677299,8.06687945,3488.3,3488.1,0.01]
[1762875677496,1.1337408,3488.3,3488.1,0.01]
[1762875678034,1.1337408,3488.3,3488.2,0.501]
[1762875678238,1.1337408,3488.3,3488.2,0.001]
[1762875678636,1.1337408,3488.3,3488.2,2.86780809]
[1762875678808,1.1337408,3488.3,3488.2,0.001]
[1762875679344,1.5985408,3488.3,3488.2,0.001]
[1762875679837,2.3455408,3488.3,3488.2,0.001]
[1762875680331,1.5985408,3488.3,3488.2,0.001]
[1762875680501,2.3455408,3488.3,3488.2,0.001]
[1762875683437,1.5985408,3488.3,3488.2,0.001]
[1762875683813,1.5985408,3488.3,3488.2,2.86780809]
[1762875683814,1.1337408,3488.3,3488.2,2.86780809]
[1762875683999,1.1337408,3488.3,3488.2,3.4423791]
[1762875684197,1.1337408,3488.3,3488.2,0.57557101]
[1762875684394,1.5985408,3488.3,3488.2,0.001]
[1762875685263,1.5985408,3488.2,3487.8,0.001]
[1762875685545,1.1337408,3487.1,3486.1,0.01]
[1762875685837,1.1337408,3486.4,3486.1,0.01]
[1762875686038,0.1745,3487.6,3486.2,0.4809]
[1762875686195,0.1745,3487.6,3486.3,0.0286837]
[1762875686399,0.1907,3487.9,3486.2,0.4809]
[1762875686625,0.1907,3487.9,3486.7,0.405504]
[1762875686798,0.1907,3487.9,3487.2,2.86761194]
[1762875686998,0.1907,3487.9,3486.6,0.747]
[1762875686999,1.6294408,3487.8,3486.8,2.86794001]
[1762875687215,2.3764408,3487.8,3486.7,2.86804141]
[1762875687434,0.4957,3487.7,3486.7,2.86804141]
[1762875687639,0.4957,3487.7,3487.0,2.86773879]
[1762875687823,0.4957,3487.7,3486.9,2.8678689]
[1762875688139,0.4957,3487.7,3486.7,2.86802567]
[1762875688361,0.4957,3487.7,3486.6,0.747]
[1762875688362,1.1337408,3487.3,3486.6,2.86804609]
[1762875688759,1.1337408,3487.5,3486.5,2.8682045]
[1762875688946,6.46833865,3487.6,3486.3,3.27387447]
[1762875688947,1.1337408,3487.3,3486.3,3.27387447]
[1762875689147,1.1337408,3487.3,3486.3,1.16177847]
[1762875689349,1.1337408,3487.3,3486.3,3.2738506]
[1762875689649,1.6294408,3487.3,3486.2,0.905504]
[1762875689957,1.1337408,3487.3,3486.9,2.86782485]
[1762875690161,1.1337408,3487.3,3486.3,3.34927047]
[1762875690162,1.1337408,3487.3,3486.5,0.5]
[1762875690360,1.1337408,3487.3,3486.6,2.86806939]
[1762875690525,0.4957,3487.2,3486.2,3.36839497]
[1762875690727,1.1337408,3487.0,3486.1,0.757]
[1762875691040,1.8807408,3487.0,3486.6,2.86811718]
[1762875691239,1.1337408,3487.1,3486.1,0.9394]
[1762875691427,1.1337408,3487.1,3486.2,0.83438762]
[1762875691627,1.1337408,3487.1,3486.4,0.405504]
[1762875691878,1.1337408,3487.1,3486.9,2.86787691]
[1762875692034,1.1337408,3487.1,3486.3,0.405504]
[1762875692361,1.1337408,3487.1,3487.0,2.86779466]
[1762875693821,1.1337408,3487.1,3487.0,3.32529466]
[1762875694022,6.34,3487.2,3487.0,0.61932529]
[1762875694224,1.1337408,3487.1,3486.9,0.747]
[1762875694428,1.1337408,3487.1,3487.0,2.86779466]
[1762875694925,1.1337408,3487.1,3486.9,0.747]
[1762875695122,1.1337408,3487.1,3487.0,2.86779466]
[1762875695524,0.4957,3487.6,3487.1,2.86770324]
[1762875695760,0.4957,3487.6,3486.9,0.747]
[1762875695965,6.74272081,3487.9,3486.9,0.747]
[1762875695966,0.1698,3487.9,3487.4,2.86744242]
[1762875696171,0.1698,3487.9,3487.6,2.86729808]
[1762875696172,1.1329408,3487.8,3487.6,2.86729808]
[1762875696371,1.1329408,3487.8,3487.6,2.86723113]
[1762875696927,1.1329408,3487.8,3487.6,2.86729409]
[1762875697124,1.1329408,3487.8,3487.2,0.5]
[1762875697125,6.5098,3487.9,3487.5,2.8673245]
[1762875697328,6.5098,3487.9,3487.2,0.5]
[1762875697329,6.34,3487.9,3487.8,2.86713687]
[1762875697777,0.746,3488.3,3488.0,2.8669053]
[1762875698175,0.746,3488.3,3487.4,0.746]
[1762875698341,1.2417,3488.3,3487.8,2.86713293]
[1762875698546,0.01,3488.9,3488.2,2.86676248]
[1762875698871,1.3244408,3488.8,3488.2,2.86676248]
[1762875699066,1.8201408,3488.8,3487.9,0.746]
[1762875699489,1.8201408,3488.8,3488.4,2.86663474]
[1762875699669,1.3244408,3488.8,3487.9,0.746]
[1762875699870,1.3244408,3488.8,3488.4,2.86662867]
[1762875700043,1.3244408,3488.8,3487.9,0.746]
[1762875700044,0.1907,3488.8,3487.9,0.746]
[1762875700231,0.01,3488.9,3488.8,2.86631506]
[1762875700632,0.01,3488.9,3488.5,1.246]
[1762875700633,0.1862,3488.9,3488.5,1.246]
[1762875700849,0.1862,3488.9,3488.5,0.746]
[1762875701045,0.1862,3488.9,3488.7,2.86636772]
[1762875701267,0.1862,3488.9,3488.5,0.746]
[1762875701671,0.1862,3488.9,3488.5,3.61251158]
[1762875701873,0.002,3488.8,3488.7,2.86639722]
[1762875702075,0.002,3488.8,3488.5,0.746]
[1762875702478,0.4659,3488.6,3488.5,0.746]
[1762875702636,1.1337408,3488.7,3488.1,0.746]
[1762875702836,1.1337408,3488.7,3488.5,2.86652388]
[1762875703071,0.002,3488.8,3488.5,2.86652388]
[1762875703307,0.002,3488.8,3488.6,2.86640263]
[1762875703452,0.002,3488.8,3488.1,0.746]
[1762875703654,0.002,3488.8,3488.7,4.22940122]
[1762875703910,0.01,3488.9,3488.8,4.22931906]
[1762875703911,1e-08,3488.9,3488.8,4.22931906]
[1762875704186,1e-08,3488.9,3488.8,4.71021906]
[1762875705649,1e-08,3488.9,3488.8,1.843904]
[1762875705855,1e-08,3488.9,3488.8,2.589904]
[1762875706102,1e-08,3488.9,3488.8,5.45621906]
[1762875706465,1e-08,3488.9,3488.8,4.51781906]
[1762875706892,1e-08,3488.9,3488.8,6.19464205]
[1762875712300,0.01,3489.9,3489.8,4.22849772]
[1762875712301,1e-08,3489.9,3489.8,4.22849772]
[1762875712477,1e-08,3489.9,3489.8,4.97349772]
[1762875712677,1e-08,3489.9,3489.8,5.45439772]
[1762875716282,1e-08,3489.9,3489.8,5.04889372]
[1762875716482,1e-08,3489.9,3489.8,6.12691573]
[1762875716689,1e-08,3489.9,3489.8,6.53241973]
[1762875717203,1e-08,3489.9,3489.8,6.53141973]
[1762875718091,1e-08,3489.9,3489.8,13.10434054]
[1762875719716,1e-08,3489.9,3489.8,6.53141973]
[1762875720283,0.00120002,3490.9,3490.8,4.41437685]
[1762875720578,0.00120002,3490.9,3490.8,4.51417685]
[1762875721224,0.26930002,3490.9,3490.8,4.51417685]
[1762875721403,0.26930002,3490.9,3490.8,4.10867285]
[1762875721605,0.72920002,3490.9,3490.8,0.744]
[1762875721916,0.72920002,3490.9,3490.8,3.60867285]
[1762875723303,0.72920002,3490.9,3490.8,0.744]
[1762875726208,0.00120002,3490.9,3490.8,2.86467285]
[1762875726541,0.00120002,3490.9,3490.8,4.87281958]
[1762875726754,0.00120002,3490.9,3490.8,3.36467285]
[1762875727038,0.92180002,3490.9,3490.8,0.743]
[1762875728037,0.46380002,3490.9,3490.8,0.743]
[1762875728201,0.92180002,3490.9,3490.8,0.743]
[1762875728712,0.92180002,3490.9,3490.5,0.743]
[1762875728909,6.57292081,3490.7,3489.9,0.5]
[1762875729231,0.0046,3490.3,3489.9,0.743]
[1762875729441,1.5936408,3490.6,3490.1,0.5]
[1762875729663,0.4599,3490.5,3490.1,0.5]
[1762875729872,0.4599,3490.5,3490.2,2.86513301]
[1762875730213,0.2664,3490.3,3490.0,0.5]
[1762875730465,0.2664,3490.3,3490.2,2.86516532]
[1762875730613,0.7244,3490.3,3490.2,2.86516532]
[1762875730817,0.7244,3490.3,3490.1,2.86523114]
[1762875731161,0.7244,3490.3,3490.2,2.86516532]
[1762875731617,0.2664,3490.3,3490.2,2.86516532]
[1762875732148,0.7244,3490.3,3489.9,3.60839814]
[1762875732311,0.458,3490.3,3489.9,0.743]
[1762875732629,0.4599,3490.2,3490.0,2.86527812]
[1762875732826,0.4599,3490.2,3489.9,3.60840451]
[1762875733053,0.4599,3490.2,3490.1,2.86524741]
[1762875733250,0.4599,3490.6,3490.2,2.8651597]
[1762875733551,1.1337408,3490.8,3489.9,0.743]
[1762875733552,0.4599,3490.5,3489.9,0.743]
[1762875733851,0.2664,3490.0,3489.9,0.743]
[1762875734263,0.7244,3490.0,3489.9,0.743]
[1762875734416,0.7244,3490.0,3489.9,3.60841161]
[1762875734616,0.7244,3490.0,3489.9,0.743]
[1762875734819,0.7244,3490.0,3489.1,0.415504]
[1762875734820,1.8581408,3490.0,3489.4,2.86580518]
[1762875735019,0.6514,3489.9,3489.4,0.742]
[1762875735214,0.0019,3489.5,3489.1,0.01]
[1762875735454,0.4598,3489.2,3489.1,0.01]
[1762875735655,0.4598,3489.2,3489.1,2.87606861]
[1762875736030,1.3994408,3489.6,3489.2,2.86590575]
[1762875736031,0.2657,3489.6,3489.2,2.86590575]
[1762875736231,0.7968736,3489.9,3489.2,2.86598647]
[1762875736414,0.4599,3489.8,3489.1,0.01]
[1762875736739,0.4599,3489.8,3489.2,1.242]
[1762875736740,7.03282081,3489.8,3489.2,1.242]
[1762875737053,1.73880847,3489.7,3489.2,0.742]
[1762875737245,0.2656,3489.3,3489.2,0.742]
[1762875737445,0.1735,3489.9,3489.6,2.86565795]
[1762875737644,0.4599,3490.2,3489.3,0.405504]
[1762875737957,0.4599,3490.2,3490.0,2.86527935]
[1762875738143,0.2609,3490.1,3489.3,0.405504]
[1762875738345,1.1337408,3490.0,3489.3,0.5]
[1762875738652,1.1337408,3490.0,3489.2,0.742]
[1762875738653,1.5916408,3490.0,3489.2,0.742]
[1762875738852,0.6561,3489.9,3489.6,2.86560821]
[1762875739152,0.6561,3489.9,3489.5,2.86571098]
[1762875739454,0.4599,3489.8,3489.2,0.742]
[1762875739626,0.2609,3489.3,3489.2,0.742]
[1762875739978,0.2609,3489.3,3489.1,0.01]
[1762875739979,1.1337408,3489.2,3489.1,0.01]
[1762875740259,1.5962408,3489.2,3489.1,0.01]
[1762875740472,1.5962408,3489.2,3489.1,2.87606861]
[1762875740635,0.4625,3489.2,3489.1,0.01]
[1762875741216,0.0026,3489.2,3489.1,2.87606861]
[1762875741419,0.6561,3489.9,3489.1,0.58432276]
[1762875741626,1.2598738,3489.9,3489.5,2.86573976]
[1762875741831,0.4599,3489.8,3489.2,0.5]
[1762875742030,0.0026,3489.3,3489.1,0.752]
[1762875742232,0.4599,3489.8,3489.1,0.752]
[1762875742233,0.4599,3489.8,3489.5,2.86572392]
[1762875742434,0.4599,3489.8,3489.7,2.86557583]
[1762875742668,0.4599,3489.8,3489.5,2.8657085]
[1762875742868,0.4599,3489.8,3489.1,0.752]
[1762875743046,0.4599,3489.8,3489.6,2.86559995]
[1762875743222,0.4599,3489.8,3489.1,1.252]
[1762875743423,0.2609,3489.5,3489.4,2.86581904]
[1762875743743,0.0026,3489.2,3489.1,0.752]
[1762875743926,0.0026,3489.2,3489.1,3.61806861]
[1762875744361,0.0018,3489.2,3489.1,3.61806861]
[1762875744568,0.4617,3489.2,3489.1,0.011]
[1762875744771,0.4617,3489.2,3489.1,2.87706861]
[1762875745272,0.1962,3489.9,3489.3,0.5]
[1762875745471,0.1962,3489.9,3489.1,0.48760686]
[1762875745637,0.1962,3489.9,3489.5,2.86566866]
[1762875745837,0.1962,3489.9,3489.4,2.86581854]
[1762875745838,0.6769,3489.9,3489.4,2.86581854]
[1762875746069,0.6769,3489.9,3489.5,2.86570106]
[1762875746269,0.6769,3489.9,3489.4,2.86577216]
[1762875746471,0.6769,3489.9,3489.3,2.86589227]
[1762875746680,0.6769,3489.9,3489.4,0.5]
[1762875746849,0.741,3490.3,3489.8,2.86544347]
[1762875747048,1.08404217,3490.3,3489.8,2.8654899]
[1762875747371,1.08404217,3490.3,3489.7,2.86551974]
[1762875747372,0.4807,3490.2,3489.7,2.86551974]
[1762875747571,0.4807,3490.2,3489.6,2.86564701]
[1762875747877,1.1337408,3490.0,3489.3,3.60688276]
[1762875748048,0.2354,3489.5,3489.4,2.86579933]
[1762875748249,1.1337408,3489.6,3489.1,0.011]
[1762875748573,0.6803,3489.9,3489.3,2.86587277]
[1762875748741,0.4807,3489.8,3489.1,0.011]
[1762875748943,1.3691408,3489.2,3489.1,0.011]
[1762875749274,0.4783,3489.5,3489.2,2.86598378]
[1762875749458,0.4783,3489.5,3489.1,0.011]
[1762875749459,0.4783,3489.5,3489.1,2.87704451]
[1762875749661,0.4783,3489.5,3489.1,0.011]
[1762875749971,0.1996,3489.9,3489.6,2.86559795]
[1762875749972,0.6803,3489.9,3489.6,2.86559795]
[1762875750177,1.88903018,3490.4,3489.2,0.5]
[1762875750382,1.2217,3490.7,3490.0,2.86531988]
[1762875750674,1.82524252,3490.6,3490.0,2.86525581]
[1762875750837,1.2207,3490.6,3490.1,2.86519467]
[1762875751235,0.4807,3490.5,3490.3,2.86501941]
[1762875751440,1.08581146,3490.6,3489.6,0.405504]
[1762875751641,2.21955226,3490.6,3489.6,0.405504]
[1762875751842,6.57292081,3490.3,3489.7,2.86555983]
[1762875752062,6.57292081,3490.3,3489.5,0.74]
[1762875752342,2.21969452,3490.2,3489.5,0.74]
[1762875752543,1.6144408,3490.2,3489.5,0.74]
[1762875752965,1.2207,3490.5,3489.8,2.86543594]
[1762875753141,1.1337408,3490.3,3489.8,2.86543594]
[1762875753340,0.60537902,3490.2,3489.8,2.86543594]
[1762875753537,0.2371,3489.9,3489.5,0.74]
[1762875753774,0.2371,3489.9,3489.6,2.86558354]
[1762875753956,0.7178,3489.9,3489.6,2.86557833]
[1762875754352,0.2371,3489.9,3489.5,0.74]
[1762875754554,0.60537902,3490.2,3489.7,2.86557583]
[1762875754866,0.60537902,3490.2,3489.1,0.9318]
[1762875754867,0.4798,3489.8,3489.1,0.751]
[1762875755068,0.1693,3489.9,3489.1,0.751]
[1762875755069,0.0027,3489.6,3489.1,0.751]
[1762875755377,0.0027,3489.6,3489.2,2.86598647]
[1762875755600,0.2628,3489.2,3489.1,0.011]
[1762875756576,0.7435,3489.2,3489.1,0.011]
[1762875757577,1.3603727,3489.8,3489.1,0.011]
[1762875757800,0.1693,3489.9,3489.1,0.1918]
[1762875757801,0.60508332,3489.7,3489.1,0.1918]
[1762875757960,0.60520648,3490.0,3489.9,2.86541161]
[1762875758164,0.60527336,3490.3,3489.8,2.86549372]
[1762875758474,0.4807,3490.6,3489.8,2.86548904]
[1762875758475,2.97500354,3490.6,3489.8,2.86548904]
[1762875758641,1.08597336,3490.5,3489.9,2.86536823]
[1762875759155,0.4807,3490.4,3489.3,0.405504]
[1762875759360,1.1337408,3490.3,3489.8,2.86544691]
[1762875759555,0.60527336,3490.2,3489.3,0.5]
[1762875759772,1.08597336,3490.2,3489.4,0.74]
[1762875760071,1.23598938,3490.1,3489.4,0.74]
[1762875760271,0.1693,3489.5,3489.4,3.60578819]
[1762875760470,0.4347,3489.5,3489.4,3.60578819]
[1762875760673,0.4347,3489.5,3489.2,2.8659666]
[1762875760974,0.4347,3489.5,3489.1,2.87705263]
[1762875761168,0.60527336,3489.7,3489.1,0.1918]
[1762875761372,0.1996,3489.8,3489.2,2.86598647]
[1762875761582,0.1996,3489.8,3489.1,0.1918]
[1762875761820,0.1996,3489.8,3489.3,2.86589517]
[1762875762100,0.1996,3489.8,3489.3,2.86587109]
[1762875762259,0.4807,3489.7,3489.4,2.86581747]
[1762875762458,0.4807,3489.7,3489.1,0.011]
[1762875762921,0.2354,3489.2,3489.1,0.011]
[1762875763215,8.57733326,3489.2,3489.1,0.011]
[1762875763423,9.66090662,3489.2,3489.1,0.011]
[1762875763577,9.61090662,3489.2,3489.1,0.011]
[1762875764264,2.47801416,3489.2,3489.1,0.011]
[1762875764575,1.73901416,3489.2,3489.1,0.011]
[1762875764962,2.35271416,3489.2,3489.1,0.011]
[1762875765264,0.60527336,3489.2,3489.1,0.011]
[1762875765465,0.6803,3489.8,3489.1,0.011]
[1762875765663,0.80355137,3489.8,3489.1,2.8770114]
[1762875765987,0.80355137,3489.8,3489.1,0.011]
[1762875765988,0.4807,3489.7,3489.1,0.011]
[1762875766183,0.80355137,3489.8,3489.4,2.86581883]
[1762875766388,0.80355137,3489.8,3489.1,0.011]
[1762875766566,1.28425137,3489.8,3489.1,0.011]
[1762875766908,0.60395137,3489.8,3489.7,2.86557583]
[1762875767231,0.60395137,3489.9,3489.5,2.86567361]
[1762875767505,0.1193,3489.9,3489.1,1.4112]
[1762875768007,0.1193,3489.9,3489.2,2.86598647]
[1762875768206,0.1193,3489.9,3489.8,2.86549372]
[1762875768407,0.002,3490.2,3490.0,2.86530799]
[1762875768606,0.002,3490.2,3489.5,2.86570973]
[1762875768607,0.0012,3490.2,3489.5,2.86570973]
[1762875768790,0.0012,3490.2,3490.0,2.86532951]
[1762875769107,0.0012,3490.2,3489.6,0.5]
[1762875769274,0.0012,3490.2,3490.1,2.86524741]
[1762875769990,0.0012,3490.2,3489.6,0.5]
[1762875770187,0.0012,3490.2,3489.6,0.738]
[1762875770388,0.0012,3490.2,3490.1,2.86524741]
[1762875770701,0.0012,3490.2,3489.6,1.238]
[1762875770903,0.0012,3490.2,3490.1,2.86524741]
[1762875771094,0.0012,3490.2,3489.9,2.86539178]
[1762875771414,0.0012,3490.2,3490.1,2.86524741]
[1762875773230,0.0012,3490.2,3489.7,0.405504]
[1762875773394,0.0012,3490.2,3489.8,0.5]
[1762875773719,0.0012,3490.2,3490.1,2.86524741]
[1762875774516,0.0012,3490.2,3489.7,0.4489634]
[1762875774731,0.0012,3490.2,3490.1,2.86524741]
[1762875777496,0.6149,3490.2,3489.8,2.86543457]
[1762875777700,0.0048,3490.0,3489.9,2.86541161]
[1762875778032,0.4785,3490.2,3489.6,2.86565722]
[1762875778033,0.0012,3490.2,3489.6,2.86565722]
[1762875778243,0.0012,3490.2,3489.9,2.86533784]
[1762875778400,0.0012,3490.2,3489.4,3.9516653]
[1762875778735,0.26222556,3490.1,3489.9,2.86539613]
[1762875779044,0.0012,3490.2,3489.2,3.6029466]
[1762875779045,0.26222556,3490.0,3489.8,2.86542284]
[1762875779331,0.26222556,3490.0,3489.2,3.32973711]
[1762875779332,0.26222556,3489.9,3489.4,2.8658222]
[1762875779496,0.39142556,3489.8,3489.7,2.86557583]
[1762875779695,0.26222556,3489.8,3489.7,2.86557583]
[1762875779911,0.1829,3490.0,3489.9,2.86541161]
[1762875780136,0.44516031,3490.0,3489.9,2.86541161]
[1762875780434,0.40796031,3490.0,3489.9,2.86541161]
[1762875780735,0.40796031,3490.0,3489.8,2.86543395]
[1762875780938,0.44516031,3489.9,3489.8,2.86543395]
[1762875781103,0.59426031,3489.9,3489.7,2.86557104]
[1762875781301,0.26226031,3489.8,3489.4,0.001]
[1762875781510,0.4745,3489.5,3489.4,0.001]
[1762875781705,0.73676031,3489.5,3489.4,0.001]
[1762875781928,0.89586031,3489.5,3489.4,0.001]
[1762875782228,0.86596134,3489.5,3489.4,2.8668222]
[1762875782429,0.86596134,3489.5,3489.4,0.001]
[1762875782430,8.33659357,3489.5,3489.4,0.001]
[1762875782623,9.10264794,3489.5,3489.4,0.001]
[1762875783009,9.10264794,3489.5,3489.1,0.011]
[1762875783010,1.1337408,3489.4,3489.1,0.011]
[1762875783216,0.0016,3489.2,3489.1,0.011]
[1762875783553,2.13460111,3489.2,3489.1,0.011]
[1762875783765,0.86771468,3489.2,3489.1,0.011]
[1762875784050,0.26226031,3489.2,3489.1,2.87706861]
[1762875784252,0.86609824,3489.4,3489.1,0.011]
[1762875784458,0.26226031,3489.3,3489.2,2.86598647]
[1762875784625,0.26213266,3489.6,3489.5,2.86574007]
[1762875784833,0.26217192,3489.6,3489.5,0.62602335]
[1762875785015,0.26217192,3489.6,3489.1,0.48302169]
[1762875785016,1.8110408,3489.6,3489.1,0.011]
[1762875785215,7.79323326,3489.2,3489.1,0.011]
[1762875785414,8.05540518,3489.2,3489.1,0.011]
[1762875785715,9.14616831,3489.2,3489.1,0.011]
[1762875786001,9.90100646,3489.2,3489.1,0.011]
[1762875786211,9.14616831,3489.2,3489.1,0.011]
[1762875786658,9.90018807,3489.2,3489.1,0.011]
[1762875786816,9.14616831,3489.2,3489.1,0.011]
[1762875787214,1.1337408,3489.1,3489.0,0.001]
[1762875787422,3.24624184,3489.1,3489.0,0.001]
[1762875787655,2.49267585,3489.1,3489.0,0.001]
[1762875787854,3.22867585,3489.1,3489.0,0.001]
[1762875791083,2.62481272,3489.1,3489.0,0.001]
[1762875791280,3.22752923,3489.1,3489.0,0.001]
[1762875792278,3.22672923,3489.1,3489.0,0.001]
[1762875793383,3.22672923,3489.1,3488.8,0.001]
[1762875793684,0.8703,3488.9,3488.7,0.001]
[1762875793884,0.8703,3488.9,3488.4,0.001]
[1762875793885,6.96919246,3488.5,3488.4,0.001]
[1762875794097,8.58528089,3488.5,3488.4,0.001]
[1762875794396,9.70702169,3488.5,3488.4,0.001]
[1762875794685,9.70702169,3488.5,3488.1,0.011]
[1762875794686,0.5,3488.2,3488.1,0.011]
[1762875794845,1.68107192,3488.2,3488.1,0.011]
[1762875795182,3.90552923,3488.2,3488.1,0.011]
[1762875795393,7.60293326,3487.4,3487.3,0.001]
[1762875795584,9.71867828,3487.4,3487.3,0.001]
[1762875795882,0.4745,3487.0,3486.1,0.01]
[1762875796096,1.2169408,3487.3,3486.1,0.1941]
[1762875796097,7.79193326,3486.7,3486.1,0.1941]
[1762875796244,7.86510518,3486.7,3486.6,2.86912367]
[1762875796451,9.35710518,3486.7,3486.6,0.001]
[1762875797048,11.00443791,3486.7,3486.6,0.001]
[1762875797985,14.87324216,3486.7,3486.6,0.001]
[1762875798183,4.40740538,3486.6,3486.1,0.01]
[1762875798497,4.40740538,3486.6,3485.1,0.01]
[1762875798498,0.905504,3485.5,3485.1,0.01]
[1762875798786,9.50830918,3485.5,3485.1,0.01]
[1762875799083,10.71080242,3485.5,3485.1,0.01]
[1762875799382,10.11123734,3485.5,3485.1,0.01]
[1762875799588,9.37623734,3485.5,3485.1,0.01]
[1762875799792,7.86780518,3485.5,3485.1,0.01]
[1762875799993,7.60563326,3485.5,3485.1,0.01]
[1762875800169,8.35216178,3485.5,3485.1,0.01]
[1762875800780,8.82863326,3485.5,3485.1,0.01]
[1762875801088,8.59896193,3485.5,3485.1,0.01]
[1762875801393,8.82863326,3485.5,3485.1,0.01]
[1762875801690,9.99236999,3485.5,3485.1,0.01]
[1762875802495,12.86139882,3485.5,3485.1,0.01]
[1762875802851,12.86139882,3485.5,3484.4,0.001]
[1762875802852,0.5,3484.5,3484.4,0.001]
[1762875803057,0.405504,3484.3,3484.1,0.01]
[1762875803300,1.1337408,3484.4,3484.1,0.01]
[1762875803301,2.36853673,3484.2,3484.1,0.01]
[1762875803609,6.61507683,3484.2,3484.1,0.01]
[1762875803755,3.74497753,3484.2,3484.1,0.01]
[1762875804613,6.61507683,3484.2,3484.1,0.01]
[1762875804868,2.50997753,3484.2,3484.1,0.01]
[1762875805147,3.12495293,3484.2,3484.1,0.01]
[1762875805325,3.85995293,3484.2,3484.1,0.01]
[1762875805900,3.35995293,3484.2,3484.1,0.01]
[1762875806101,3.12495293,3484.2,3484.1,0.01]
[1762875806416,3.85995293,3484.2,3484.1,0.01]
[1762875806638,1.50694893,3484.2,3484.1,0.01]
[1762875806839,0.735,3484.2,3484.1,0.01]
[1762875807141,0.4675,3484.2,3484.1,0.01]
[1762875807457,1.45933655,3484.2,3484.1,0.01]
[1762875807610,2.60974055,3484.2,3484.1,0.01]
[1762875808237,6.61358065,3484.2,3484.1,0.01]
[1762875808446,4.90942648,3484.1,3483.1,0.011]
[1762875808673,5.12066303,3484.1,3483.1,0.011]
[1762875808898,11.8281661,3483.8,3483.1,0.011]
[1762875809066,0.5,3483.2,3483.1,0.011]
[1762875809255,9.09476981,3483.2,3483.1,0.011]